[Event "TUR-chT Superleague 2018"]
[Site "Ankara"]
[Date "2018.07.29"]
[Round "6"]
[White "Sade, Defne"]
[Black "Ozbek, Busra"]
[Result "0-1"]
[ECO "B52"]
[WhiteElo "1954"]
[BlackElo "1848"]
[Annotator "NA"]
[PlyCount "102"]
[EventDate "2018.07.25"]
[EventType "team-tourn"]
[EventCountry "TUR"]
[SourceTitle "playchess.com"]
[Source "ChessBase"]
[SourceQuality "1"]
[TimeControl "40/5400+30:1800+30"]

1. e4 c5 2. Nf3 d6 3. Bb5+ Bd7 4. Bxd7+ Nxd7 5. d4 cxd4 6. Qxd4 Ngf6 7. Nc3 e6 8. O-O Be7 9. Rd1 a6 10. Bg5 O-O 11. Rd2 Qc7 12. Rad1 Rac8 13. Qe3 Rfd8 14. Bf4 Nb6 15. Rd3 Nc4 16. Qc1 b5 17. a3 Qc5 18. Nd4 Bf8 19. Bg3 Ng4 20. Nb3 Qb6 21. h3 Nge5 22. Bxe5 Nxe5 23. Rg3 Rc7 24. Qg5 Rdc8 25. Rf1 Nc4 26. Nd1 b4 27. axb4 Qxb4 28. f4 a5 29. f5 a4 30. Nd4 e5 31. Ne2 Nd2 32. c3 Qc5+ 33. Ne3 Nxf1 34. Kxf1 Rb7 35. Ng4 g6 36. Nf6+ Kg7 37. Nh5+ Kh8 38. Qf6+ Kg8 39. Qh4 Rxb2 {[%emt 1:18:00]} 40. Nf6+ {[%emt 1:26:00]} Kg7 {[%emt 0:30:30]} 41. Nd4 {[%emt 0:36:45]} exd4 {[%emt 0:06:30]} 42. Qxh7+ {[%emt 0:10:11]} Kxf6 {[%emt 0:00:30]} 43. Rf3 {[%emt 0:00:21]} Rb1+ {[%emt 0:02:30]} 44. Kf2 {[%emt 0:01:06]} dxc3+ {[%emt 0:00:30]} 45. Kg3 {[%emt 0:00:15]} g5 {[%emt 0:03:30]} 46. Kg4 {[%emt 0:03:54]} Re1 {[%emt 0:01:50]} 47. Kh5 {[%emt 0:01:08]} Rxe4 {[%emt 0:02:41]} 48. g4 {[%emt 0:00:08]} Bg7 {[%emt 0:02:53]} 49. h4 {[%emt 0:00:08]} Rh8 {[%emt 0:00:50]} 50. hxg5+ {[%emt 0:00:08]} Ke7 {[%emt 0:00:52]} 51. f6+ {[%emt 0:00:10]} Bxf6 {[%emt 0:00:40]} 0-1

[Event "TUR-chT Superleague 2018"]
[Site "Ankara"]
[Date "2018.07.29"]
[Round "6"]
[White "Celik, Eda"]
[Black "Can, Isil"]
[Result "0-1"]
[ECO "A08"]
[WhiteElo "1864"]
[BlackElo "1862"]
[Annotator "NA"]
[PlyCount "137"]
[EventDate "2018.07.25"]
[EventType "team-tourn"]
[EventCountry "TUR"]
[SourceTitle "playchess.com"]
[Source "ChessBase"]
[SourceQuality "1"]
[TimeControl "40/5400+30:1800+30"]

1. Nf3 d5 2. g3 c5 3. Bg2 Nc6 4. d3 Nf6 5. O-O e6 6. Nbd2 Bd6 7. e4 O-O 8. Re1 Qc7 9. c3 {A08: Königsindisch im Anzug} (9. Qe2 Nd7 10. Nf1 dxe4 11. dxe4 b6 12. Ne3 Bb7 13. c3 Rfd8 14. b3 a6 15. Nc4 Be7 16. Bf4 e5 17. Bc1 {0-1 (49) Naroditsky,D (2619)-Sheng,J (2392) chess.com INT 2018}) 9... b6 10. Qe2 dxe4 11. dxe4 e5 12. Nf1 h6 13. Ne3 Ne7 14. Rd1 $146 ({Vorgänger:} 14. Nh4 Re8 15. b3 Bb7 16. Ng4 Nxg4 17. Qxg4 Kh7 18. Nf5 Nxf5 19. Qxf5+ {½-½ (19) Steffen,A (2162)-Mueller,D (2199) Germany 2004}) 14... Bb7 15. Nh4 Rad8 16. Ng4 Nxg4 17. Qxg4 Kh7 18. Qh5 Ng8 19. Be3 g6 20. Qe2 Be7 21. Rf1 Bxh4 22. gxh4 Qe7 23. h5 g5 24. Bh3 Nf6 25. Bf5+ Kh8 26. Qf3 Rg8 27. Rad1 g4 28. Qg2 Nxh5 29. Bxh6 Nf4 30. Bxf4 exf4 31. Rxd8 Qxd8 32. Bxg4 Qh4 33. f3 Bxe4 34. h3 f5 35. fxe4 fxg4 36. Rxf4 Qe1+ 37. Rf1 Qe3+ 38. Qf2 gxh3+ 39. Kh1 Qxe4+ 40. Qf3 Re8 41. Qxe4 Rxe4 {[%emt 1:42:00]} 42. Rf7 {[%emt 2:02:12]} Re2 {[%emt 0:05:30]} 43. Rxa7 {[%emt 0:00:11]} Rxb2 {[%emt 0:00:30]} 44. Rb7 {[%emt 0:08:22]} Rxa2 {[%emt 0:04:30]} 45. Rxb6 {[%emt 0:00:42]} Rc2 {[%emt 0:00:00]} 46. Rh6+ {[%emt 0:00:21]} Kg7 {[%emt 0:00:00]} 47. Rxh3 {[%emt 0:00:00]} Kf6 {[%emt 0:00:30]} 48. Kg1 {[%emt 0:03:17]} Ke5 {[%emt 0:00:00]} 49. Kf1 {[%emt 0:02:27]} Kd5 {[%emt 0:00:00]} 50. Ke1 {[%emt 0:04:45]} Kc4 {[%emt 0:01:30]} 51. Kd1 {[%emt 0:01:12]} Rxc3 {[%emt 0:00:30]} 52. Rh8 {[%emt 0:00:56]} Rg3 {[%emt 0:00:30]} 53. Rc8 {[%emt 0:00:57]} Kd3 {[%emt 0:00:30]} 54. Rd8+ {[%emt 0:00:05]} Kc3 {[%emt 0:00:30]} 55. Rc8 {[%emt 0:01:26]} c4 {[%emt 0:00:00]} 56. Ke2 {[%emt 0:00:28]} Rg4 {[%emt 0:00:00]} 57. Kd1 {[%emt 0:00:26]} Rg1+ {[%emt 0:05:30]} 58. Ke2 {[%emt 0:00:10]} Rc1 {[%emt 0:03:30]} 59. Rc7 {[%emt 0:00:57]} Kb2 {[%emt 0:01:30]} 60. Rb7+ {[%emt 0:00:31]} Kc2 {[%emt 0:00:30]} 61. Rc7 {[%emt 0:00:26]} c3 {[%emt 0:03:30]} 62. Rb7 {[%emt 0:00:34]} Rh1 {[%emt 0:01:38]} (62... Rb1 $142 63. Rc7 Kb2 64. Kd3 Rd1+ 65. Kc4 c2 66. Rb7+ Kc1 67. Kc3 Rh1 68. Rf7 Rh3+ 69. Kd4 Kb2 70. Rf2 Kb1 71. Rxc2 Kxc2 72. Ke4 Rh4+ 73. Kf5 Kd3 74. Ke6 Rd4 75. Kf5 Rd5+ 76. Kf6 Kd4 77. Ke6 Kc5 78. Ke7 Re5+ 79. Kf7 Kd6 80. Kf6 Rc5 81. Kf7 Rf5+ 82. Kg6 Ke6 83. Kg7 Rf6 84. Kg8 Rf7 85. Kh8 Kf5 86. Kg8 Kg6 87. Kh8 Rf8#) 63. Rc7 {[%emt 0:00:30]} Rh8 {[%emt 0:03:19]} 64. Re7 {[%emt 0:00:26]} Rd8 {[%emt 0:00:51]} 65. Ke1 {[%emt 0:00:31]} Kc1 {[%emt 0:00:24]} 66. Ke2 {[%emt 0:00:31]} c2 {[%emt 0:00:23]} 67. Rc7 {[%emt 0:00:34]} Re8+ {[%emt 0:01:29]} 68. Kd3 {[%emt 0:00:28]} Kd1 {[%emt 0:00:56]} 69. Kd4 {[%emt 0:01:01]} 0-1

[Event "TUR-chT Superleague 2018"]
[Site "Ankara"]
[Date "2018.07.29"]
[Round "6"]
[White "Ayan, Bengu Sena"]
[Black "Yorgun, Yaren Naz"]
[Result "1-0"]
[ECO "E06"]
[WhiteElo "1787"]
[BlackElo "1737"]
[Annotator "NA"]
[PlyCount "72"]
[EventDate "2018.07.25"]
[EventType "team-tourn"]
[EventCountry "TUR"]
[SourceTitle "playchess.com"]
[Source "ChessBase"]
[SourceQuality "1"]
[TimeControl "40/5400+30:1800+30"]

1. d4 d5 2. c4 e6 3. Nf3 Nf6 4. g3 {[%emt 0:08:00]} Be7 {[%emt 0:11:30]} 5. Bg2 {[%emt 0:00:30]} O-O {[%emt 0:00:30]} 6. Qc2 {[%emt 0:00:30]} b6 {[%emt 0:00:30]} 7. cxd5 {[%emt 0:00:30]} exd5 {[%emt 0:00:30]} 8. O-O {[%emt 0:00:30]} Re8 {[%emt 0:00:30]} 9. Bf4 {[%emt 0:00:30]} Bd6 {[%emt 0:01:30]} 10. Bxd6 {[%emt 0:08:30]} Qxd6 {[%emt 0:00:30]} 11. Nc3 {[%emt 0:00:30]} c6 {[%emt 0:05:30]} 12. Rfe1 {[%emt 0:03:30]} Nbd7 {[%emt 0:30:30]} 13. Nd2 {[%emt 0:10:30]} Bb7 {[%emt 0:03:30]} 14. Rad1 {[%emt 0:12:30]} Rac8 {[%emt 0:07:30]} 15. Qb1 {[%emt 0:06:30]} Qb8 {[%emt 0:05:30]} 16. b4 {[%emt 0:05:30]} Rcd8 {[%emt 0:06:30]} 17. Qb3 {[%emt 0:07:30]} Nf8 {[%emt 0:03:30]} 18. e4 {[%emt 0:06:30]} dxe4 {[%emt 0:00:30]} 19. Ndxe4 {[%emt 0:00:30]} Nxe4 {[%emt 0:02:53]} 20. Rxe4 {[%emt 0:04:30]} Rxe4 {[%emt 0:00:56]} 21. Bxe4 {[%emt 0:00:30]} Ne6 {[%emt 0:08:57]} 22. d5 {[%emt 0:03:55]} cxd5 {[%emt 0:00:10]} 23. Nxd5 {[%emt 0:03:14]} Kh8 {[%emt 0:04:20]} 24. Nc3 {[%emt 0:01:47]} Bxe4 {[%emt 0:05:21]} 25. Nxe4 {[%emt 0:01:14]} Rxd1+ {[%emt 0:01:26]} 26. Qxd1 {[%emt 0:00:03]} Qe8 {[%emt 0:00:24]} 27. Qd5 {[%emt 0:00:45]} Kg8 {[%emt 0:00:29]} 28. Qb7 {[%emt 0:02:46]} Nd8 {[%emt 0:00:29]} 29. Qc7 {[%emt 0:05:10]} h6 {[%emt 0:00:34]} 30. Nd6 {[%emt 0:00:30]} Qf8 {[%emt 0:00:00]} 31. Qd7 {[%emt 0:02:50]} Ne6 {[%emt 0:00:35]} 32. b5 {[%emt 0:01:03]} Nd8 {[%emt 0:00:49]} 33. Nc8 {[%emt 0:01:19]} Ne6 {[%emt 0:00:23]} 34. Nxa7 {[%emt 0:00:42]} Qa3 {[%emt 0:00:41]} 35. Qe8+ {[%emt 0:01:57]} Nf8 {[%emt 0:00:28]} 36. Nc8 {[%emt 0:00:27]} Qxa2 {[%emt 0:00:53]} 1-0

[Event "TUR-chT Superleague 2018"]
[Site "Ankara"]
[Date "2018.07.29"]
[Round "6"]
[White "Aydin, Gulenay"]
[Black "Balajayeva, Khanim"]
[Result "1/2-1/2"]
[ECO "C62"]
[WhiteElo "1732"]
[BlackElo "2332"]
[Annotator "NA"]
[PlyCount "77"]
[EventDate "2018.07.25"]
[EventType "team-tourn"]
[EventCountry "TUR"]
[SourceTitle "playchess.com"]
[Source "ChessBase"]
[SourceQuality "1"]
[TimeControl "40/5400+30:1800+30"]

1. e4 e5 2. Nf3 d6 {[%emt 0:16:30]} 3. d4 {[%emt 0:01:30]} exd4 {[%emt 0:00:30]} 4. Qxd4 {[%emt 0:00:30]} Nc6 {[%emt 0:00:30]} 5. Bb5 {[%emt 0:00:30]} Bd7 {[%emt 0:00:30]} 6. Bxc6 {[%emt 0:00:30]} Bxc6 {[%emt 0:00:30]} 7. Nc3 {[%emt 0:00:30]} Nf6 {[%emt 0:00:30]} 8. Bg5 {[%emt 0:00:30]} Be7 {[%emt 0:00:30]} 9. O-O-O {[%emt 0:00:30]} O-O {[%emt 0:00:30]} 10. e5 {[%emt 0:00:30]} Ne8 {[%emt 0:01:30]} 11. Bxe7 {[%emt 0:03:30]} Qxe7 {[%emt 0:00:00]} 12. Rhe1 {[%emt 0:05:30]} Bxf3 {[%emt 0:27:00]} 13. gxf3 {[%emt 0:00:30]} dxe5 {[%emt 0:00:30]} 14. Qxe5 {[%emt 0:03:30]} Qxe5 {[%emt 0:08:30]} 15. Rxe5 {[%emt 0:04:30]} f6 {[%emt 0:01:30]} 16. Re7 {[%emt 0:03:30]} Rf7 {[%emt 0:00:30]} 17. Rdd7 {[%emt 0:00:30]} Rxe7 {[%emt 0:00:30]} 18. Rxe7 {[%emt 0:00:30]} Rd8 {[%emt 0:00:00]} 19. Ne2 {[%emt 0:07:30]} Kf8 {[%emt 0:02:00]} 20. Re3 {[%emt 0:01:30]} Kf7 {[%emt 0:03:30]} 21. Nf4 {[%emt 0:02:30]} f5 {[%emt 0:03:30]} 22. Ne6 {[%emt 0:03:30]} Rc8 {[%emt 0:03:30]} 23. c3 {[%emt 0:02:30]} h6 {[%emt 0:00:30]} 24. b3 {[%emt 0:04:30]} Nf6 {[%emt 0:02:30]} 25. c4 {[%emt 0:02:30]} c6 {[%emt 0:05:30]} 26. Kd2 {[%emt 0:04:30]} Nd7 {[%emt 0:03:58]} 27. Ke2 {[%emt 0:04:30]} g6 {[%emt 0:02:10]} 28. Nf4 {[%emt 0:06:30]} a5 {[%emt 0:05:07]} 29. Nd3 {[%emt 0:02:30]} b6 {[%emt 0:07:15]} 30. Kd2 {[%emt 0:05:30]} Kf6 {[%emt 0:02:27]} 31. h4 {[%emt 0:02:30]} Rd8 {[%emt 0:01:22]} 32. Ke2 {[%emt 0:01:30]} Nc5 {[%emt 0:01:27]} 33. Nxc5 {[%emt 0:03:30]} bxc5 {[%emt 0:00:02]} 34. f4 {[%emt 0:00:30]} Rd4 {[%emt 0:02:05]} 35. Kf3 {[%emt 0:00:00]} Rd2 {[%emt 0:00:12]} 36. Re2 {[%emt 0:00:00]} Rd3+ {[%emt 0:00:00]} 37. Re3 {[%emt 0:01:30]} Rd2 {[%emt 0:00:00]} 38. Re2 {[%emt 0:00:30]} Rd3+ {[%emt 0:00:04]} 39. Re3 {[%emt 0:00:30]} 1/2-1/2

[Event "TUR-chT Superleague 2018"]
[Site "Ankara"]
[Date "2018.07.29"]
[Round "6"]
[White "Onbasi, Irem"]
[Black "Incecik, Seyma Zeynep"]
[Result "0-1"]
[ECO "E90"]
[WhiteElo "1427"]
[BlackElo "1673"]
[Annotator "NA"]
[PlyCount "82"]
[EventDate "2018.07.25"]
[EventType "team-tourn"]
[EventCountry "TUR"]
[SourceTitle "playchess.com"]
[Source "ChessBase"]
[SourceQuality "1"]
[TimeControl "40/5400+30:1800+30"]

1. d4 d6 2. c4 g6 3. Nc3 {[%emt 0:10:30]} Bg7 {[%emt 0:11:00]} 4. Nf3 {[%emt 0:00:30]} Nc6 {[%emt 0:00:30]} 5. h3 {[%emt 0:00:30]} Nf6 {[%emt 0:00:30]} 6. e4 {[%emt 0:00:30]} O-O {[%emt 0:00:30]} 7. Be3 {[%emt 0:00:30]} Nd7 {[%emt 0:00:30]} 8. Bd3 {[%emt 0:02:30]} e5 {[%emt 0:01:30]} 9. d5 {[%emt 0:03:30]} Nd4 {[%emt 0:14:30]} 10. Bxd4 {[%emt 0:09:30]} exd4 {[%emt 0:00:30]} 11. Ne2 {[%emt 0:00:00]} Re8 {[%emt 0:04:30]} 12. O-O {[%emt 0:09:00]} Nc5 {[%emt 0:01:30]} 13. Nexd4 {[%emt 0:13:30]} Nxe4 {[%emt 0:02:30]} 14. Qc2 {[%emt 0:03:30]} Ng5 {[%emt 0:06:30]} 15. Nxg5 {[%emt 0:08:30]} Qxg5 {[%emt 0:01:30]} 16. Nf3 {[%emt 0:00:00]} Qf6 {[%emt 0:00:30]} 17. Rfe1 {[%emt 0:04:00]} Bxh3 {[%emt 0:00:30]} 18. Rxe8+ {[%emt 0:12:30]} Rxe8 {[%emt 0:00:30]} 19. Qa4 {[%emt 0:01:12]} Ra8 {[%emt 0:02:30]} 20. Rb1 {[%emt 0:01:32]} Bg4 {[%emt 0:06:30]} 21. Nh2 {[%emt 0:07:39]} Bf5 {[%emt 0:05:30]} 22. Qc2 {[%emt 0:02:47]} Bd7 {[%emt 0:05:30]} 23. Re1 {[%emt 0:02:31]} Qxb2 {[%emt 0:03:30]} 24. Qxb2 {[%emt 0:00:30]} Bxb2 {[%emt 0:00:00]} 25. Rb1 {[%emt 0:00:52]} Bd4 {[%emt 0:00:00]} 26. Nf3 {[%emt 0:04:55]} Bb6 {[%emt 0:01:30]} 27. Nd2 {[%emt 0:00:53]} Kg7 {[%emt 0:03:30]} 28. Re1 {[%emt 0:01:01]} Re8 {[%emt 0:04:30]} 29. Rxe8 {[%emt 0:01:13]} Bxe8 {[%emt 0:00:30]} 30. Ne4 {[%emt 0:00:10]} Bd7 {[%emt 0:00:00]} 31. Kf1 {[%emt 0:00:35]} f5 {[%emt 0:01:00]} 32. Nc3 {[%emt 0:00:13]} Kf6 {[%emt 0:00:30]} 33. f4 {[%emt 0:00:52]} h6 {[%emt 0:01:30]} 34. g3 {[%emt 0:00:28]} Be8 {[%emt 0:03:30]} 35. Kg2 {[%emt 0:00:33]} g5 {[%emt 0:00:30]} 36. Kf3 {[%emt 0:00:31]} Bh5+ {[%emt 0:02:17]} 37. Kg2 {[%emt 0:00:04]} Be3 {[%emt 0:00:29]} 38. Be2 {[%emt 0:00:50]} Be8 {[%emt 0:01:41]} 39. Kf3 {[%emt 0:00:32]} Bd4 {[%emt 0:00:37]} 40. Nd1 {[%emt 0:00:00]} Bh5+ {[%emt 0:30:30]} 41. Kg2 {[%emt 0:01:37]} Bxe2 {[%emt 0:00:00]} 0-1

[Event "TUR-chT Superleague 2018"]
[Site "Ankara"]
[Date "2018.07.30"]
[Round "7"]
[White "Muzychuk, Mariya"]
[Black "Nechaeva, Marina"]
[Result "1-0"]
[ECO "D10"]
[WhiteElo "2521"]
[BlackElo "2410"]
[Annotator "ChessBase"]
[PlyCount "137"]
[EventDate "2018.07.25"]
[EventType "team-tourn"]
[EventCountry "TUR"]
[SourceTitle "playchess.com"]
[Source "ChessBase"]
[SourceQuality "1"]
[TimeControl "40/5400+30:1800+30"]

1. d4 d5 2. c4 c6 3. Nc3 Nf6 4. cxd5 cxd5 5. Bf4 Nc6 6. e3 Bg4 7. Qb3 Na5 8. Qa4+ Bd7 9. Qc2 e6 10. Bd3 Be7 11. h3 Rc8 12. Nf3 Nc4 13. O-O b5 14. a3 O-O 15. Ne5 a6 16. Rfc1 Bc6 17. Qe2 Nxe5 18. Bxe5 Bb7 19. Rc2 Nd7 20. Bf4 Nb6 21. a4 b4 22. Nb1 a5 23. b3 Bd6 24. Bxd6 Qxd6 25. Raa2 {[%emt 0:42:30]} g6 {[%emt 1:14:00]} 26. Rxc8 {[%emt 0:08:30]} Rxc8 {[%emt 0:00:30]} 27. Rc2 {[%emt 0:00:30]} Rxc2 {[%emt 0:00:30]} 28. Qxc2 {[%emt 0:00:00]} Qc6 {[%emt 0:00:30]} 29. Qxc6 {[%emt 0:01:00]} Bxc6 {[%emt 0:00:30]} 30. Nd2 {[%emt 0:00:00]} g5 {[%emt 0:03:30]} 31. g4 {[%emt 0:03:00]} h6 {[%emt 0:00:30]} 32. f4 {[%emt 0:04:30]} f6 {[%emt 0:00:00]} 33. Kf2 {[%emt 0:00:30]} Kf7 {[%emt 0:00:00]} 34. Kg3 {[%emt 0:00:30]} Ke7 {[%emt 0:05:30]} 35. h4 {[%emt 0:00:30]} Bxa4 {[%emt 0:11:46]} 36. bxa4 {[%emt 0:13:30]} Nxa4 {[%emt 0:00:02]} 37. hxg5 {[%emt 0:06:30]} hxg5 {[%emt 0:00:03]} 38. Nb3 {[%emt 0:03:30]} Nb2 {[%emt 0:00:04]} 39. Bc2 {[%emt 0:18:25]} Nc4 {[%emt 0:00:11]} 40. Kf2 {[%emt 0:01:19]} a4 {[%emt 0:00:54]} 41. Nc5 {[%emt 0:00:46]} a3 {[%emt 0:15:30]} 42. Bb3 {[%emt 0:03:30]} Kd6 {[%emt 0:00:00]} 43. Ke2 {[%emt 0:14:10]} Na5 {[%emt 0:00:00]} 44. Ba2 {[%emt 0:04:12]} e5 {[%emt 0:12:51]} 45. Nb3 {[%emt 0:02:35]} Nc6 {[%emt 0:00:53]} 46. dxe5+ {[%emt 0:01:52]} fxe5 {[%emt 0:00:30]} 47. fxg5 {[%emt 0:00:00]} Ke7 {[%emt 0:00:00]} 48. Nc5 {[%emt 0:03:36]} d4 {[%emt 0:00:31]} 49. e4 {[%emt 0:01:41]} b3 {[%emt 0:01:56]} 50. Bxb3 {[%emt 0:01:48]} Nb4 {[%emt 0:00:03]} 51. Nd3 {[%emt 0:02:18]} a2 {[%emt 0:00:24]} 52. Bxa2 {[%emt 0:00:34]} Nxa2 {[%emt 0:00:30]} 53. Nxe5 {[%emt 0:00:00]} Nb4 {[%emt 0:00:00]} 54. Nf3 {[%emt 0:00:00]} Nc6 {[%emt 0:00:33]} 55. Kd3 {[%emt 0:00:27]} Kf7 {[%emt 0:00:04]} 56. e5 {[%emt 0:00:32]} Ke7 {[%emt 0:02:50]} 57. Ke4 {[%emt 0:00:10]} d3 {[%emt 0:01:19]} 58. Kxd3 {[%emt 0:00:40]} Nd8 {[%emt 0:00:07]} 59. Ke4 {[%emt 0:00:16]} Ne6 {[%emt 0:00:09]} 60. g6 {[%emt 0:00:05]} Nc5+ {[%emt 0:00:25]} 61. Kf4 {[%emt 0:01:05]} Kf8 {[%emt 0:00:37]} 62. Kf5 {[%emt 0:00:19]} Nd3 {[%emt 0:00:47]} 63. e6 {[%emt 0:01:48]} Nb4 {[%emt 0:00:13]} 64. Ke5 {[%emt 0:00:24]} Nc6+ {[%emt 0:00:34]} 65. Kd6 {[%emt 0:01:02]} Ne7 {[%emt 0:00:03]} 66. g7+ {[%emt 0:00:40]} Ke8 {[%emt 0:00:07]} 67. Nd4 {[%emt 0:00:31]} Nc8+ {[%emt 0:00:23]} 68. Ke5 {[%emt 0:00:19]} Ne7 {[%emt 0:00:03]} 69. Nf5 {[%emt 0:00:30]} 1-0

[Event "TUR-chT Superleague 2018"]
[Site "Ankara"]
[Date "2018.07.30"]
[Round "7"]
[White "Erdogdu, Mert"]
[Black "Demirel, Ali Yagmur"]
[Result "1-0"]
[ECO "B54"]
[WhiteElo "2411"]
[BlackElo "1719"]
[Annotator "NA"]
[PlyCount "59"]
[EventDate "2018.07.25"]
[EventType "team-tourn"]
[EventCountry "TUR"]
[SourceTitle "playchess.com"]
[Source "ChessBase"]
[SourceQuality "1"]
[TimeControl "40/5400+30:1800+30"]

1. e4 c5 2. Nf3 d6 3. d4 cxd4 4. Nxd4 e6 5. Nc3 a6 6. Be3 Nd7 7. g4 b5 8. Bg2 Bb7 9. a3 Rc8 10. Qe2 Qc7 11. O-O Ne5 12. h3 Nf6 13. Kh1 Nc4 14. Bc1 Qc5 15. Nb3 Qa7 16. Nd2 {[%emt 0:59:00]} Be7 {[%emt 0:56:30]} 17. Nxc4 {[%emt 0:01:30]} Rxc4 {[%emt 0:01:30]} 18. a4 {[%emt 0:01:30]} Qc5 {[%emt 0:04:30]} 19. axb5 {[%emt 0:05:30]} axb5 {[%emt 0:00:00]} 20. g5 {[%emt 0:02:30]} Nd7 {[%emt 0:01:00]} 21. Be3 {[%emt 0:00:30]} Qc6 {[%emt 0:02:30]} 22. Ra7 {[%emt 0:04:30]} O-O {[%emt 0:00:30]} 23. Rc1 {[%emt 0:05:30]} Rc8 {[%emt 0:02:30]} 24. Nb1 {[%emt 0:12:06]} Nc5 {[%emt 0:04:30]} 25. Na3 {[%emt 0:01:51]} Nxe4 {[%emt 0:09:50]} 26. Nxc4 {[%emt 0:01:55]} bxc4 {[%emt 0:00:13]} 27. Qg4 {[%emt 0:01:29]} d5 {[%emt 0:00:37]} 28. Bxe4 {[%emt 0:01:17]} dxe4 {[%emt 0:00:20]} 29. Rd1 {[%emt 0:00:12]} Bd6 {[%emt 0:00:30]} 30. Rxd6 {[%emt 0:00:47]} 1-0

[Event "TUR-chT Superleague 2018"]
[Site "Ankara"]
[Date "2018.07.30"]
[Round "7"]
[White "Badelka, Olga"]
[Black "Ozturk, Kubra"]
[Result "1/2-1/2"]
[ECO "A13"]
[WhiteElo "2407"]
[BlackElo "2330"]
[Annotator "NA"]
[PlyCount "114"]
[EventDate "2018.07.25"]
[EventType "team-tourn"]
[EventCountry "TUR"]
[SourceTitle "playchess.com"]
[Source "ChessBase"]
[SourceQuality "1"]
[TimeControl "40/5400+30:1800+30"]

1. c4 e6 2. Nf3 d5 3. b3 Nf6 4. Bb2 c5 5. e3 Nc6 6. cxd5 exd5 7. Be2 Be7 8. O-O O-O 9. d4 cxd4 10. Nxd4 Ne4 11. Nxc6 bxc6 12. Nd2 Bf5 13. Rc1 Qd6 14. Nxe4 Bxe4 15. Bd3 f5 16. f3 Bxd3 17. Qxd3 Bf6 18. Bd4 Bxd4 19. Qxd4 Qf6 {[%emt 1:12:00]} 20. Rc3 {[%emt 0:44:00]} Rae8 {[%emt 0:05:30]} 21. Qxf6 {[%emt 0:00:30]} Rxf6 {[%emt 0:00:30]} 22. Rfc1 {[%emt 0:00:30]} Rfe6 {[%emt 0:03:30]} 23. Rxc6 {[%emt 0:02:30]} Rxe3 {[%emt 0:00:30]} 24. Rc8 {[%emt 0:04:30]} d4 {[%emt 0:05:05]} 25. Rxe8+ {[%emt 0:05:30]} Rxe8 {[%emt 0:00:01]} 26. Rd1 {[%emt 0:00:00]} Re2 {[%emt 0:03:39]} 27. a4 {[%emt 0:00:00]} Rb2 {[%emt 0:00:30]} 28. Rxd4 {[%emt 0:00:30]} Rxb3 {[%emt 0:00:20]} 29. Rd8+ {[%emt 0:00:30]} Kf7 {[%emt 0:00:30]} 30. Rd7+ {[%emt 0:00:00]} Kf6 {[%emt 0:00:51]} 31. Rxa7 {[%emt 0:00:00]} Rb1+ {[%emt 0:03:14]} 32. Kf2 {[%emt 0:00:30]} Rb2+ {[%emt 0:02:55]} 33. Kg3 {[%emt 0:00:30]} Ra2 {[%emt 0:00:35]} 34. h4 {[%emt 0:03:30]} Kg6 {[%emt 0:02:36]} 35. a5 {[%emt 0:18:30]} Ra4 {[%emt 0:01:19]} 36. a6 {[%emt 0:00:30]} f4+ {[%emt 0:01:48]} 37. Kh3 {[%emt 0:00:30]} h5 {[%emt 0:00:57]} 38. Ra8 {[%emt 0:01:30]} Ra1 {[%emt 0:01:45]} 39. Kh2 {[%emt 0:01:30]} Kh7 {[%emt 0:00:14]} 40. Ra7 {[%emt 0:00:00]} Kg6 {[%emt 0:01:11]} 41. Ra8 {[%emt 0:18:00]} Kh7 {[%emt 0:00:00]} 42. g3 {[%emt 0:01:30]} Ra2+ {[%emt 0:01:00]} 43. Kh3 {[%emt 0:00:00]} Ra3 {[%emt 0:00:30]} 44. a7 {[%emt 0:02:00]} fxg3 {[%emt 0:01:30]} 45. Kxg3 {[%emt 0:00:30]} Ra4 {[%emt 0:00:00]} 46. f4 {[%emt 0:00:30]} Ra3+ {[%emt 0:01:00]} 47. Kf2 {[%emt 0:00:30]} g6 {[%emt 0:05:30]} 48. Ke2 {[%emt 0:00:30]} Kg7 {[%emt 0:00:30]} 49. Kd2 {[%emt 0:00:00]} Kh7 {[%emt 0:00:30]} 50. Kc2 {[%emt 0:00:00]} Kg7 {[%emt 0:00:00]} 51. Kb2 {[%emt 0:00:30]} Ra6 {[%emt 0:00:00]} 52. Kb3 {[%emt 0:00:00]} Kh7 {[%emt 0:00:30]} 53. Kb4 {[%emt 0:00:00]} Kg7 {[%emt 0:00:30]} 54. Kc4 {[%emt 0:00:30]} Ra1 {[%emt 0:00:30]} 55. Kb5 {[%emt 0:00:30]} Rb1+ {[%emt 0:00:00]} 56. Kc6 {[%emt 0:00:30]} Rc1+ {[%emt 0:00:00]} 57. Kb6 {[%emt 0:00:00]} Rb1+ {[%emt 0:00:30]} 1/2-1/2